bitfinex-derivatives/quotes_SOLF0:USTF0_20250215
["timestamp","ask_amount","ask_price","bid_price","bid_amount"]
[1739627385332,5.14065532,195.65,195.61,0.03682787]
[1739627386424,0.03025532,195.65,195.61,5.14812787]
[1739627386828,0.03025532,195.65,195.62,9.02171071]
[1739627388132,0.03025532,195.65,195.62,14.13281071]
[1739627388737,0.03025532,195.65,195.61,0.03682787]
[1739627389238,5.14065532,195.65,195.61,5.14822787]
[1739627389445,5.14065532,195.65,195.61,0.03682787]
[1739627390833,0.03025532,195.65,195.61,0.03682787]
[1739627391033,0.03025532,195.65,195.61,5.14812787]
[1739627391435,9.02171071,195.64,195.61,0.03682787]
[1739627392636,14.13251071,195.64,195.61,0.03682787]
[1739627392841,9.02171071,195.64,195.61,0.03682787]
[1739627393239,5.1111,195.62,195.61,0.03682787]
[1739627393941,9.02171071,195.64,195.61,0.03682787]
[1739627393942,14.13251071,195.64,195.61,0.03682787]
[1739627394240,0.03025532,195.65,195.61,0.03682787]
[1739627394640,5.14065532,195.65,195.61,0.03682787]
[1739627397541,0.03025532,195.65,195.61,0.03682787]
[1739627397747,0.03025532,195.65,195.62,5.111]
[1739627398343,0.03025532,195.65,195.61,5.14812787]
[1739627400940,0.03025532,195.65,195.62,14.13281071]
[1739627401438,0.03025532,195.65,195.62,9.02171071]
[1739627401744,0.03025532,195.65,195.62,14.13281071]
[1739627402341,0.03025532,195.65,195.62,9.02171071]
[1739627404044,0.03025532,195.65,195.63,5.1107]
[1739627404244,0.03025532,195.65,195.62,9.02171071]
[1739627404245,0.03025532,195.65,195.64,9.02171071]
[1739627404644,0.03025532,195.65,195.64,14.13231071]
[1739627405644,0.03025532,195.65,195.64,9.02171071]
[1739627405842,0.03025532,195.65,195.62,14.13271071]
[1739627406147,0.03025532,195.65,195.61,0.03682787]
[1739627407442,9.02171071,195.64,195.61,0.03682787]
[1739627408449,5.1111,195.63,195.61,0.03682787]
[1739627408940,9.02171071,195.64,195.61,0.03682787]
[1739627409140,14.13231071,195.64,195.61,0.03682787]
[1739627409845,9.02171071,195.62,195.61,0.03682787]
[1739627410254,14.13281071,195.62,195.61,0.03682787]
[1739627411951,9.02171071,195.62,195.61,0.03682787]
[1739627412251,12.03511071,195.64,195.61,0.03682787]
[1739627413850,5.1111,195.63,195.61,0.03682787]
[1739627414047,0.03025532,195.65,195.61,0.03682787]
[1739627414653,5.14085532,195.65,195.61,0.03682787]
[1739627416054,0.03025532,195.65,195.61,0.03682787]
[1739627416255,0.03025532,195.65,195.61,5.14822787]
[1739627416457,0.03025532,195.65,195.61,0.03682787]
[1739627417860,0.03025532,195.65,195.62,5.1111]
[1739627418259,0.03025532,195.65,195.61,0.03682787]
[1739627418260,0.03025532,195.65,195.64,9.02171071]
[1739627419150,0.03025532,195.65,195.64,14.13231071]
[1739627422758,0.03025532,195.65,195.64,9.02171071]
[1739627424158,0.03025532,195.65,195.64,14.13231071]
[1739627425759,0.03025532,195.65,195.64,9.02171071]
[1739627427163,0.03025532,195.65,195.62,9.02171071]
[1739627427860,0.03025532,195.65,195.61,0.03682787]
[1739627429157,9.02171071,195.62,195.61,0.03682787]
[1739627429563,9.02171071,195.64,195.61,0.03682787]
[1739627429758,5.1111,195.62,195.61,0.03682787]
[1739627430666,14.13281071,195.62,195.61,0.03682787]
[1739627433366,9.02171071,195.62,195.61,0.03682787]
[1739627434872,9.02171071,195.64,195.61,0.03682787]
[1739627435267,14.13231071,195.64,195.61,0.03682787]
[1739627437068,0.03025532,195.65,195.62,5.1111]
[1739627437273,0.03025532,195.65,195.62,9.02171071]
[1739627437678,0.03025532,195.65,195.63,5.1108]
[1739627438176,0.03025532,195.65,195.62,9.02171071]
[1739627440875,0.03025532,195.65,195.61,0.03682787]
[1739627441281,9.02171071,195.64,195.61,0.03682787]
[1739627441876,9.02171071,195.62,195.61,0.03682787]
[1739627442581,14.13281071,195.62,195.61,0.03682787]
[1739627446383,9.02171071,195.62,195.53,5.1133]
[1739627446583,9.02171071,195.56,195.52,33.75821945]
[1739627447180,9.02171071,195.56,195.5,10.61091071]
[1739627447380,9.06074693,195.56,195.52,0.03656553]
[1739627448883,9.02171071,195.54,195.52,0.03656553]
[1739627449083,14.13501071,195.54,195.52,0.03656553]
[1739627449285,9.02171071,195.54,195.52,0.03656553]
[1739627449485,14.13501071,195.54,195.52,0.03656553]
[1739627450687,9.02171071,195.54,195.52,0.03656553]
[1739627450887,5.1135,195.53,195.52,0.03656553]
[1739627451088,9.02171071,195.54,195.52,0.03656553]
[1739627451282,14.13501071,195.54,195.52,0.03656553]
[1739627451785,9.02171071,195.54,195.52,0.03656553]
[1739627451984,5.1135,195.53,195.52,0.03656553]
[1739627455383,14.13491071,195.54,195.52,0.03656553]
[1739627455795,9.02171071,195.54,195.52,0.03656553]
[1739627456090,5.1135,195.53,195.52,0.03656553]
[1739627458289,9.02171071,195.54,195.44,9.02171071]
[1739627458488,9.02171071,195.47,195.42,9.02171071]
[1739627458992,14.13681071,195.47,195.43,5.1161]
[1739627459385,14.13681071,195.47,195.42,9.02171071]
[1739627459591,14.17486944,195.47,195.43,0.03605441]
[1739627459893,9.05976944,195.47,195.43,0.03605441]
[1739627460094,0.03805873,195.47,195.43,0.03605441]
[1739627461098,0.03805873,195.47,195.43,5.15215441]
[1739627461293,9.02171071,195.45,195.43,0.03605441]
[1739627461595,5.1159,195.44,195.43,0.03605441]
[1739627462095,9.02171071,195.45,195.36,9.02171071]
[1739627462296,14.13861071,195.41,195.36,9.02171071]
[1739627462790,14.13891071,195.39,195.33,6.7108]
[1739627463292,9.02171071,195.37,195.34,0.03702738]
[1739627463598,0.03316783,195.38,195.34,0.03702738]
[1739627464096,0.03316783,195.38,195.34,5.15542738]
[1739627465091,0.03316783,195.38,195.35,5.1181]
[1739627466498,0.03316783,195.38,195.36,5.1179]
[1739627467197,0.03316783,195.38,195.37,5.1177]
[1739627467797,1.6236,195.46,195.41,5.1164]
[1739627468598,1.6236,195.46,195.42,5.1163]
[1739627468797,19.26451982,195.48,195.42,5.1163]
[1739627469097,0.03837775,195.46,195.42,0.03668047]
[1739627470100,0.03837775,195.46,195.43,5.116]
[1739627471102,0.03837775,195.46,195.42,0.03668047]
[1739627471293,14.14971982,195.45,195.42,0.03668047]
[1739627472201,0.03837775,195.46,195.42,0.03668047]
[1739627472403,5.1158,195.45,195.42,0.03668047]
[1739627472605,0.03837775,195.46,195.42,0.03668047]
[1739627474397,5.1161,195.43,195.42,0.03668047]
[1739627476004,5.1159,195.44,195.42,0.03668047]
[1739627477504,0.03837775,195.46,195.42,0.03668047]
[1739627477703,5.1161,195.43,195.42,0.03668047]
[1739627478302,5.1158,195.45,195.42,0.03668047]
[1739627478699,0.03837775,195.46,195.42,0.03668047]
[1739627478894,5.1159,195.44,195.42,0.03668047]
[1739627483711,14.16707935,195.44,195.42,0.03668047]
[1739627484714,5.1161,195.43,195.42,0.03668047]
[1739627485812,14.16707935,195.44,195.42,0.03668047]
[1739627486713,5.1161,195.43,195.42,0.03668047]
[1739627489708,9.05117935,195.44,195.42,0.03668047]
[1739627491009,14.16717935,195.44,195.42,0.03668047]
[1739627491808,9.05117935,195.44,195.42,0.03668047]
[1739627492014,5.1161,195.43,195.42,0.03668047]
[1739627492806,5.1161,195.43,195.42,8.047e-05]
[1739627493010,5.1172,195.39,195.35,1.6645]
[1739627493206,9.05117935,195.38,195.35,1.6645]
[1739627493707,14.16867935,195.38,195.35,1.6645]
[1739627494114,0.03758735,195.38,195.36,5.1179]
[1739627494417,0.03758735,195.38,195.35,10.75238435]
[1739627495012,9.05117935,195.42,195.38,5.1174]
[1739627495718,14.16757935,195.42,195.37,5.1177]
[1739627496311,0.03887185,195.41,195.37,5.1177]
[1739627497016,0.03887185,195.41,195.36,1.6106]
[1739627497208,0.03887185,195.41,195.38,5.1174]
[1739627497406,0.03887185,195.41,195.37,9.05117935]
[1739627498217,0.03887185,195.41,195.39,9.05117935]
[1739627498819,0.03887185,195.41,195.4,5.1169]
[1739627499615,0.03887185,195.41,195.39,9.05117935]
[1739627499818,0.03887185,195.41,195.39,14.16817935]
[1739627500017,0.03887185,195.41,195.39,9.05117935]
[1739627501021,0.03887185,195.41,195.4,5.1169]
[1739627502720,0.03887185,195.41,195.39,9.05117935]
[1739627503921,0.03887185,195.41,195.38,5.1172]
[1739627506122,0.03887185,195.41,195.37,9.05117935]
[1739627506318,0.03887185,195.41,195.39,5.117]
[1739627507421,0.03887185,195.41,195.4,5.1169]
[1739627507720,0.03887185,195.41,195.37,9.05117935]
[1739627508424,0.03887185,195.41,195.38,5.1174]
[1739627510425,0.03887185,195.41,195.37,9.05117935]
[1739627510926,0.03887185,195.41,195.4,5.1169]
[1739627511625,0.03887185,195.41,195.38,5.1172]
[1739627512221,0.03887185,195.41,195.37,9.05117935]
[1739627512427,0.03887185,195.41,195.4,5.1169]
[1739627514125,0.03887185,195.41,195.39,5.1171]
[1739627515623,0.03887185,195.41,195.37,9.05117935]
[1739627516823,0.03887185,195.41,195.38,5.1174]
[1739627518531,0.03887185,195.41,195.37,9.05117935]
[1739627518734,0.03887185,195.41,195.39,5.1171]
[1739627522940,0.03887185,195.41,195.38,5.1174]
[1739627523641,0.03887185,195.41,195.39,5.1171]
[1739627523841,0.03887185,195.41,195.37,9.05117935]
[1739627524032,5.15557185,195.41,195.36,1.6106]
[1739627524345,5.15557185,195.41,195.37,5.1176]
[1739627524539,0.03887185,195.41,195.36,1.6106]
[1739627524742,0.03887185,195.41,195.38,5.1173]
[1739627526235,0.03887185,195.41,195.39,14.16807935]
[1739627526445,0.03887185,195.41,195.39,9.05117935]
[1739627527239,0.03887185,195.41,195.37,9.05117935]
[1739627527643,0.03887185,195.41,195.38,5.1172]
[1739627527838,0.03887185,195.41,195.37,9.05117935]
[1739627528338,0.03887185,195.41,195.38,5.1174]
[1739627530537,0.03887185,195.41,195.37,14.16877935]
[1739627532048,5.117,195.4,195.35,15.87038435]
[1739627532244,5.117,195.4,195.35,1.701205]
[1739627532245,9.05117935,195.4,195.35,1.701205]
[1739627532444,5.1174,195.39,195.35,1.701205]
[1739627533338,14.16807935,195.4,195.35,6.819305]
[1739627534147,5.1172,195.39,195.35,1.701205]
[1739627534542,9.05117935,195.4,195.35,1.701205]
[1739627534850,5.1174,195.38,195.35,1.701205]
[1739627535547,5.1174,195.38,195.35,0.036705]
[1739627535750,5.1172,195.39,195.35,0.036705]
[1739627536645,14.16817935,195.4,195.35,5.154905]
[1739627536846,9.05117935,195.4,195.35,9.08788435]
[1739627537444,0.03887185,195.41,195.37,5.1177]
[1739627537651,0.03887185,195.41,195.37,14.16887935]
[1739627537942,0.03887185,195.41,195.4,5.1169]
[1739627538747,0.03887185,195.41,195.39,9.05117935]
[1739627539752,0.03887185,195.41,195.4,5.1169]
[1739627541050,14.16597935,195.48,195.43,9.05117935]
[1739627541850,191.0,195.49,195.45,9.05117935]
[1739627542054,9.05117935,195.52,195.47,9.05117935]
[1739627542355,0.03445446,195.49,195.47,9.05117935]
[1739627542546,9.05117935,195.54,195.48,0.03470841]
[1739627542754,9.0838355,195.52,195.48,0.03470841]
[1739627543555,5.1144,195.5,195.48,0.03470841]
[1739627543855,9.05117935,195.5,195.48,0.03470841]
[1739627544457,5.1145,195.49,195.48,0.03470841]
[1739627544656,9.05117935,195.5,195.41,9.05117935]
[1739627544853,9.05117935,195.46,195.41,9.05117935]
[1739627545048,9.05117935,195.46,195.41,14.16757935]
[1739627545354,9.05117935,195.48,195.41,9.05117935]
[1739627545754,0.03926054,195.46,195.43,0.03633493]
[1739627550959,5.15456054,195.46,195.43,0.03633493]
[1739627551659,5.1158,195.45,195.43,0.03633493]
[1739627552358,5.1159,195.44,195.43,0.03633493]
[1739627552554,14.16707935,195.44,195.43,0.03633493]
[1739627552753,5.1167,195.41,195.36,5.1179]
[1739627553154,9.05117935,195.42,195.35,9.05117935]
[1739627553854,0.03598764,195.4,195.37,0.03406841]
[1739627554059,9.08716699,195.4,195.37,0.03406841]
[1739627556062,5.1172,195.39,195.37,0.03406841]
[1739627557263,9.08716699,195.4,195.37,0.03406841]
[1739627557862,14.20426699,195.4,195.37,0.03406841]
[1739627559964,9.08716699,195.4,195.37,0.03406841]
[1739627560863,9.05117935,195.38,195.37,0.03406841]
[1739627561667,14.16857935,195.38,195.37,0.03406841]
[1739627563169,9.05117935,195.38,195.37,0.03406841]
[1739627565067,14.16857935,195.38,195.37,0.03406841]
[1739627565766,9.05117935,195.38,195.37,0.03406841]
[1739627565966,5.1172,195.39,195.37,0.03406841]
[1739627570861,9.08716699,195.4,195.37,0.03406841]
[1739627571968,14.20426699,195.4,195.37,0.03406841]
[1739627574872,9.08716699,195.4,195.37,0.03406841]
[1739627575172,5.1172,195.39,195.37,0.03406841]
[1739627578173,9.08716699,195.4,195.37,0.03406841]
[1739627578475,0.03598764,195.4,195.37,9.08524776]
[1739627579067,0.03598764,195.4,195.39,14.16837935]
[1739627582677,9.05117935,195.5,195.42,5.1163]
[1739627582879,9.05117935,195.5,195.43,9.05117935]
[1739627583379,5.115,195.48,195.43,9.05117935]
[1739627583583,9.05117935,195.5,195.43,9.05117935]
[1739627583884,0.03498068,195.47,195.44,0.03507032]
[1739627584976,5.1154,195.46,195.44,0.03507032]
[1739627585177,14.16657935,195.46,195.44,0.03507032]
[1739627585582,5.1156,195.45,195.44,0.03507032]
[1739627588379,10.66887935,195.46,195.35,9.05117935]
[1739627588591,9.05117935,195.39,195.32,12.14507935]
[1739627589089,9.05117935,195.37,195.32,10.56607935]
[1739627589786,0.03675359,195.36,195.33,5.15344147]
[1739627591088,0.03675359,195.36,195.33,0.03474147]
[1739627592093,0.03675359,195.36,195.33,5.15344147]
[1739627594896,0.03675359,195.36,195.33,0.03474147]
[1739627595092,5.1185,195.34,195.33,0.03474147]
[1739627595799,14.16947935,195.35,195.33,0.03474147]
[1739627596294,9.05117935,195.35,195.33,0.03474147]
[1739627596998,14.16937935,195.35,195.33,0.03474147]
[1739627597790,9.05117935,195.35,195.33,0.03474147]
[1739627598693,0.03675359,195.36,195.33,0.03474147]
[1739627598894,0.03675359,195.36,195.34,9.05117935]
[1739627599199,0.03675359,195.36,195.35,5.1182]
[1739627606707,0.03675359,195.36,195.34,9.05117935]
[1739627606902,0.03675359,195.36,195.33,0.03474147]
[1739627608205,9.05117935,195.35,195.33,0.03474147]
[1739627609108,14.16947935,195.35,195.33,0.03474147]
[1739627610208,5.1185,195.34,195.33,0.03474147]
[1739627611707,9.05117935,195.35,195.24,9.05117935]
[1739627611906,9.05117935,195.29,195.24,9.05117935]
[1739627612313,9.05117935,195.27,195.22,9.05117935]
[1739627612912,0.0383066,195.26,195.23,0.03629137]
[1739627614910,0.0383066,195.26,195.24,5.1209]
[1739627615304,0.0383066,195.26,195.25,5.1208]
[1739627619310,0.0383066,195.26,195.24,5.1211]
[1739627620317,0.0383066,195.26,195.25,5.1208]
[1739627621711,0.0383066,195.26,195.24,5.121]
[1739627621910,9.05117935,195.25,195.24,5.121]
[1739627622114,9.05117935,195.25,195.23,5.15759137]
[1739627622517,9.05117935,195.25,195.23,0.03629137]
[1739627622715,14.17207935,195.25,195.23,0.03629137]
[1739627624010,9.05117935,195.25,195.23,0.03629137]
[1739627624315,5.1211,195.24,195.23,0.03629137]
[1739627625707,9.05117935,195.25,195.14,9.05117935]
[1739627625906,9.05117935,195.19,195.13,3.0687]
[1739627626810,9.08626338,195.19,195.15,0.03402219]
[1739627627215,9.08626338,195.19,195.15,5.15742219]
[1739627628015,9.08626338,195.19,195.15,0.03402219]
[1739627628709,14.20876338,195.19,195.15,0.03402219]
[1739627629008,9.08626338,195.19,195.15,0.03402219]
[1739627630815,9.05117935,195.17,195.15,0.03402219]
[1739627631410,14.17417935,195.17,195.15,0.03402219]
[1739627631716,9.05117935,195.17,195.15,0.03402219]
[1739627632315,9.08626338,195.19,195.15,0.03402219]
[1739627633414,9.08626338,195.19,195.15,5.15742219]
[1739627633815,9.08626338,195.19,195.16,5.1229]
[1739627634211,9.08626338,195.19,195.15,0.03402219]
[1739627634613,9.08626338,195.19,195.16,5.1232]
[1739627634821,0.03508403,195.19,195.15,0.03402219]
[1739627635021,0.03508403,195.19,195.16,9.05117935]
[1739627636223,0.03508403,195.19,195.17,5.1229]
[1739627636821,0.03508403,195.19,195.18,5.1227]
[1739627643226,0.03508403,195.19,195.17,5.1229]
[1739627643527,0.03508403,195.19,195.16,9.05117935]
[1739627643727,0.03508403,195.19,195.16,14.17437935]
[1739627644027,0.03508403,195.19,195.16,9.05117935]
[1739627644221,0.03508403,195.19,195.17,5.1229]
[1739627645623,0.03508403,195.19,195.18,5.1227]
[1739627646027,0.03508403,195.19,195.18,14.17387935]
[1739627651432,9.05117935,195.29,195.23,5.1213]
[1739627651828,14.17097935,195.29,195.22,9.05117935]
[1739627652331,9.05117935,195.29,195.24,5.1208]
[1739627652532,0.03475021,195.27,195.24,0.03608842]
[1739627654134,9.05117935,195.25,195.24,0.03608842]
[1739627654829,14.17197935,195.25,195.24,0.03608842]
[1739627661437,9.05117935,195.25,195.16,1.5238]
[1739627661637,9.05117935,195.21,195.16,1.5238]
[1739627661934,9.05117935,195.19,195.12,9.05117935]
[1739627662136,9.05117935,195.17,195.13,5.124]
[1739627662534,9.0896032,195.17,195.13,0.03567863]
[1739627664641,5.1232,195.16,195.13,0.03567863]
[1739627666044,5.1235,195.15,195.13,0.03567863]
[1739627667042,5.1237,195.14,195.13,0.03567863]
[1739627669446,14.17467935,195.15,195.13,0.03567863]
[1739627669643,9.05117935,195.15,195.13,0.03567863]
[1739627670147,5.1237,195.14,195.13,0.03567863]
[1739627675451,9.05117935,195.15,195.13,0.03567863]
[1739627676055,5.1237,195.14,195.13,0.03567863]
[1739627676258,9.05117935,195.15,195.13,0.03567863]
[1739627677058,5.1237,195.14,195.13,0.03567863]
[1739627677260,9.05117935,195.15,195.13,0.03567863]
[1739627678160,5.1237,195.14,195.13,0.03567863]
[1739627678359,9.05117935,195.15,195.13,0.03567863]
[1739627680263,5.1237,195.14,195.13,0.03567863]
[1739627683565,9.05117935,195.15,195.13,0.03567863]
[1739627683765,14.17477935,195.15,195.13,0.03567863]
[1739627684767,9.05117935,195.15,195.13,0.03567863]
[1739627686763,14.17467935,195.15,195.13,0.03567863]
[1739627687169,9.05117935,195.15,195.13,0.03567863]
[1739627689574,14.17467935,195.15,195.13,0.03567863]
[1739627691574,9.05117935,195.15,195.13,0.03567863]
[1739627693577,0.03842385,195.17,195.13,0.03567863]
[1739627693773,0.03842385,195.17,195.14,9.05117935]
[1739627694677,0.03842385,195.17,195.16,14.17437935]
[1739627694878,200.05117935,195.23,195.16,9.05117935]
[1739627695073,200.05117935,195.23,195.18,9.05117935]
[1739627695278,9.05117935,195.25,195.18,9.05117935]
[1739627696282,9.05117935,195.25,195.2,5.15762286]
[1739627696283,0.0349745,195.23,195.2,5.15762286]
[1739627696878,0.0349745,195.23,195.2,0.03552286]
[1739627697581,9.08615385,195.23,195.2,0.03552286]
[1739627698176,14.20755385,195.23,195.2,0.03552286]
[1739627699285,9.08615385,195.23,195.2,0.03552286]
[1739627700073,0.0349745,195.23,195.2,0.03552286]
[1739627700381,9.05117935,195.21,195.2,0.03552286]
[1739627700582,9.05117935,195.21,195.09,28.51377609]
[1739627700583,9.05117935,195.21,195.1,9.05117935]
[1739627700778,0.0349745,195.23,195.09,30.13597609]
[1739627700779,9.05117935,195.14,195.09,1.6222]
[1739627701780,0.03652726,195.13,195.1,0.0379364]
[1739627703182,0.03652726,195.13,195.1,5.1627364]
[1739627703478,9.05117935,195.12,195.1,0.0379364]
[1739627706677,5.1245,195.11,195.1,0.0379364]
[1739627709288,5.1257,195.07,195.02,6.7459]
[1739627709586,9.05117935,195.06,195.02,6.7459]
[1739627709788,9.05117935,195.06,195.02,1.6191]
[1739627709988,9.05117935,195.06,195.03,5.1266]
[1739627710287,9.08422514,195.06,195.03,5.16463162]
[1739627710787,9.08422514,195.06,195.04,5.1263]
[1739627711087,0.03304579,195.06,195.04,5.1263]
[1739627712191,0.03304579,195.06,195.05,5.1261]
[1739627714586,0.03304579,195.06,195.03,0.03803162]
[1739627716388,9.05117935,195.12,195.04,9.05117935]
[1739627716586,9.05117935,195.14,195.03,0.03803162]
[1739627716789,9.05117935,195.14,195.08,9.05117935]
[1739627717687,0.0368703,195.13,195.09,0.03268602]
[1739627718191,0.0368703,195.13,195.09,5.15768602]
[1739627718393,0.0368703,195.13,195.09,0.03268602]
[1739627720291,0.0368703,195.13,195.09,5.15748602]
[1739627720688,9.05117935,195.12,195.09,0.03268602]
[1739627722393,9.05117935,195.1,195.09,0.03268602]
[1739627724894,14.17597935,195.1,195.09,0.03268602]
[1739627731700,9.05117935,195.1,194.92,16.17962337]
[1739627731906,9.05117935,194.98,194.93,1.5861]
[1739627732106,9.05117935,195.0,194.93,1.5861]
[1739627732308,9.05117935,195.02,194.96,9.05117935]
[1739627732507,9.05117935,195.04,194.96,9.05117935]
[1739627732705,14.17757935,195.04,194.99,5.1277]
[1739627732909,0.03566657,195.02,194.98,0.03833244]
[1739627733407,9.08684592,195.02,194.98,0.03833244]
[1739627734102,14.21374592,195.02,194.98,0.03833244]
[1739627734307,9.08684592,195.02,194.98,0.03833244]
[1739627734505,14.21374592,195.02,194.98,0.03833244]
[1739627735608,5.1272,195.01,194.98,0.03833244]
[1739627737609,9.08684592,195.02,194.98,0.03833244]
[1739627738311,14.21374592,195.02,194.98,0.03833244]
[1739627739215,9.08684592,195.02,194.98,0.03833244]
[1739627740414,0.03566657,195.02,194.99,5.1274]
[1739627741015,0.03566657,195.02,194.98,14.21741179]
[1739627742514,5.16256657,195.02,194.98,14.21741179]
[1739627743616,5.16256657,195.02,194.98,9.08951179]
[1739627744314,5.16256657,195.02,194.98,14.21741179]
[1739627745717,0.03566657,195.02,194.99,5.1276]
[1739627745916,0.03566657,195.02,194.98,9.08951179]
[1739627747016,0.03566657,195.02,194.98,14.21741179]
[1739627748018,5.1272,195.01,194.98,9.08951179]
[1739627748214,5.1272,195.01,194.98,0.03833244]
[1739627753516,9.08684592,195.02,194.98,0.03833244]
[1739627754322,5.1273,195.01,194.98,0.03833244]
[1739627754523,0.03566657,195.02,194.98,9.08951179]
[1739627755422,0.03566657,195.02,194.98,14.21741179]
[1739627755823,0.03566657,195.02,194.98,9.08951179]
[1739627756522,0.03566657,195.02,194.99,5.1274]
[1739627757121,0.03566657,195.02,195.0,5.1273]
[1739627757723,0.03566657,195.02,194.99,5.1276]
[1739627758423,0.03566657,195.02,195.0,5.1274]
[1739627758919,0.03566657,195.02,194.98,9.08951179]
[1739627759126,0.03566657,195.02,195.01,5.1271]
[1739627760124,12.19047935,195.12,195.0,9.05117935]
[1739627760326,10.56557935,195.12,195.05,9.05117935]
[1739627760528,5.125,195.1,195.05,14.17727935]
[1739627760729,10.56557935,195.12,195.05,14.17727935]
[1739627761230,5.1620441,195.1,195.07,0.03468851]
[1739627762728,0.0370441,195.1,195.07,0.03468851]
[1739627763132,9.08822345,195.1,195.07,0.03468851]
[1739627764224,5.1253,195.08,195.07,0.03468851]
[1739627765228,9.08822345,195.1,195.07,0.03468851]
[1739627767034,14.21302345,195.1,195.07,0.03468851]
[1739627767532,0.0370441,195.1,195.07,5.15998851]
[1739627767729,0.0370441,195.1,195.07,0.03468851]
[1739627768531,5.1620441,195.1,195.07,0.03468851]
[1739627769337,5.1253,195.08,195.07,0.03468851]
[1739627769637,14.17647935,195.08,195.07,0.03468851]
[1739627780740,14.17647935,195.08,195.07,8.851e-05]
[1739627785544,5.1251,195.09,195.07,8.851e-05]
[1739627785735,0.0370441,195.1,195.07,8.851e-05]
[1739627786047,0.0370441,195.1,195.08,9.05117935]
[1739627786342,9.05117935,195.16,195.1,9.05117935]
[1739627786737,9.05117935,195.16,195.11,5.1245]
[1739627786738,14.17437935,195.16,195.11,5.1245]
[1739627787044,9.05117935,195.14,195.08,12.29707935]
[1739627787239,14.17497935,195.14,195.11,0.03558163]
[1739627787543,9.05117935,195.14,195.11,0.03558163]
[1739627787743,9.05117935,195.12,195.11,0.03558163]
[1739627789142,9.05117935,195.14,195.11,0.03558163]
[1739627789643,14.17497935,195.14,195.11,0.03558163]
[1739627790843,0.03630445,195.15,195.11,0.03558163]
[1739627791446,0.03630445,195.15,195.13,5.124]
[1739627791942,0.03630445,195.15,195.11,0.03558163]
[1739627792737,5.1221,195.21,195.14,9.05117935]
[1739627792943,5.1221,195.21,195.16,9.05117935]
[1739627793342,9.05117935,195.22,195.16,9.05117935]
[1739627793849,9.05117935,195.22,195.17,5.1229]
[1739627794042,0.03347096,195.21,195.17,5.16188357]
[1739627794645,0.03347096,195.21,195.17,0.03898357]
[1739627795243,5.1222,195.2,195.17,0.03898357]
[1739627795945,5.1224,195.19,195.17,0.03898357]
[1739627796350,5.1223,195.2,195.17,0.03898357]
[1739627796651,0.03347096,195.21,195.18,9.05117935]
[1739627796853,0.03347096,195.21,195.2,9.05117935]
[1739627797344,0.03347096,195.21,195.18,10.70257935]
[1739627798048,0.03347096,195.21,195.19,5.1224]
[1739627799848,0.03347096,195.21,195.18,10.70257935]
[1739627800142,0.03347096,195.21,195.18,1.6514]
[1739627800542,5.1222,195.2,195.18,1.6514]
[1739627800747,0.03347096,195.21,195.18,1.6514]
[1739627801645,5.15537096,195.21,195.18,1.6514]
[1739627802048,0.03347096,195.21,195.18,1.6514]
[1739627802250,5.15547096,195.21,195.18,1.6514]
[1739627802451,9.05117935,195.2,195.17,0.03898357]
[1739627802747,5.1224,195.19,195.17,0.03898357]
[1739627803355,14.17327935,195.2,195.17,0.03898357]
[1739627804851,5.1221,195.2,195.17,0.03898357]
[1739627806050,0.03347096,195.21,195.17,5.16178357]
[1739627806352,0.03347096,195.21,195.17,0.03898357]
[1739627806547,9.05117935,195.2,195.17,0.03898357]
[1739627807151,5.1224,195.19,195.17,0.03898357]
[1739627807857,5.1227,195.18,195.17,0.03898357]
[1739627808153,14.17387935,195.18,195.17,0.03898357]
[1739627810255,5.1227,195.18,195.17,0.03898357]
[1739627810755,9.05117935,195.2,195.17,0.03898357]
[1739627810756,5.1224,195.19,195.17,0.03898357]
[1739627811454,5.15557096,195.21,195.17,0.03898357]
[1739627811654,0.03347096,195.21,195.17,0.03898357]
[1739627812052,0.03347096,195.21,195.18,5.1227]
[1739627815459,0.03347096,195.21,195.18,14.17387935]
[1739627816363,0.03347096,195.21,195.17,5.16168357]
[1739627816760,0.03347096,195.21,195.17,0.03898357]
[1739627817564,5.15537096,195.21,195.17,5.16168357]
[1739627818052,0.03347096,195.21,195.17,5.16168357]
[1739627819463,5.15537096,195.21,195.17,5.16168357]
[1739627820165,0.03347096,195.21,195.17,5.16168357]
[1739627820361,0.03347096,195.21,195.18,5.1226]
[1739627822965,0.03347096,195.21,195.2,5.1221]
[1739627823166,200.05117935,195.28,195.2,9.05117935]
[1739627823366,9.05117935,195.28,195.22,9.05117935]
[1739627823866,5.1208,195.26,195.22,9.05117935]
[1739627824366,5.15339962,195.26,195.22,9.0885153]
[1739627824763,0.03259962,195.26,195.22,9.0885153]
[1739627824964,5.1209,195.25,195.22,0.03733595]
[1739627826170,5.1213,195.24,195.22,0.03733595]
[1739627827463,5.1209,195.25,195.22,0.03733595]
[1739627827665,9.08377897,195.26,195.22,0.03733595]
[1739627829069,14.20437897,195.26,195.22,0.03733595]
[1739627830764,9.08377897,195.26,195.22,0.03733595]